{"text_format":"3","workbook":"xlsx","n_sheets":1,"sheets":["LAGERLISTE FOR UTSTYR"],"not_rendered":{"defined_names":5},"read":"whole","date_system":"1900"}

{"sheet":"LAGERLISTE FOR UTSTYR","index":0,"n_rows":9,"n_cols":19,"rows_kept":9,"merged":[[0,1,0,5],[0,6,0,9],[0,10,0,12],[0,13,0,14],[2,1,2,6],[2,7,2,18]]}
[null,"LAGERLISTE FOR UTSTYR"]
[]
[null,"FYSISK TILSTAND",{"$nulls":5},"ØKONOMISK STATUS"]
[null,"Aktiva- eller serienummer","Varebeskrivelse (merke og modell)","Sted","Tilstand","Leverandør","År med tjeneste som gjenstår ","Opprinnelig verdi","Nedbetaling","Datoen for kjøp eller leie","Låneperiode i år","Lånerente","Månedlig betaling","Månedlig driftskostnad","Total månedlig kostnad","Forventet verdi ved slutten av låneperioden","Årlig lineær avskrivning","Månedlig lineær avskrivning","Gjeldende verdi"]
[null,123,"Type Modell","Hovedavdeling","Bra","lokal",5,{"v":180000,"d":"kr 180,000.00"},{"v":30000,"d":"kr 30,000.00"},{"$f":"DATE(YEAR(TODAY())-2, 1,1)","v":"2016-01-01"},4,{"v":0.1,"d":"10.00%"},{"$f":"IFERROR(IF(AND(Data[[#This Row],[Opprinnelig verdi]]>0,Data[[#This Row],[Opprinnelig verdi]]<>Data[[#This Row],[Nedbetaling]]),-1*PMT(Data[[#This Row],[Lånerente]]/12,Data[[#This Row],[Låneperiode i år]]*12,Data[[#This Row],[Opprinnelig verdi]]-Data[[#This Row],[Nedbetaling]]),0),0)","v":{"v":3804.387515212078,"d":"kr 3,804.39"}},{"v":1200,"d":"kr 1,200.00"},{"$f":"IFERROR(Data[[#This Row],[Månedlig driftskostnad]]+Data[[#This Row],[Månedlig betaling]],\"\")","v":{"v":5004.387515212078,"d":"kr 5,004.39"}},{"v":120000,"d":"kr 120,000.00"},{"$f":"IFERROR(IF(Data[[#This Row],[Opprinnelig verdi]]>0,SLN(Data[[#This Row],[Opprinnelig verdi]],Data[[#This Row],[Forventet verdi ved slutten av låneperioden]],Data[[#This Row],[År med tjeneste som gjenstår ]]),0),0)","v":{"v":12000,"d":"kr 12,000.00"}},{"$f":"IFERROR(Data[[#This Row],[Årlig lineær avskrivning]]/12,0)","v":{"v":1000,"d":"kr 1,000.00"}},{"$f":"IFERROR(Data[[#This Row],[Opprinnelig verdi]]-(Data[[#This Row],[Årlig lineær avskrivning]]*((TODAY()-Data[[#This Row],[Datoen for kjøp eller leie]])/365)),0)","v":{"v":150082.19178082192,"d":"kr 150,082.19"}}]
[null,456,"Type Modell","Hovedavdeling","Utmerket","lokal",3,{"v":30000,"d":"kr 30,000.00"},{"v":30000,"d":"kr 30,000.00"},{"$f":"DATE(YEAR(TODAY())-1, 1,1)","v":"2017-01-01"},null,null,{"$f":"IFERROR(IF(AND(Data[[#This Row],[Opprinnelig verdi]]>0,Data[[#This Row],[Opprinnelig verdi]]<>Data[[#This Row],[Nedbetaling]]),-1*PMT(Data[[#This Row],[Lånerente]]/12,Data[[#This Row],[Låneperiode i år]]*12,Data[[#This Row],[Opprinnelig verdi]]-Data[[#This Row],[Nedbetaling]]),0),0)","v":{"v":0,"d":"kr 0.00"}},{"v":120,"d":"kr 120.00"},{"$f":"IFERROR(Data[[#This Row],[Månedlig driftskostnad]]+Data[[#This Row],[Månedlig betaling]],\"\")","v":{"v":120,"d":"kr 120.00"}},null,{"$f":"IFERROR(IF(Data[[#This Row],[Opprinnelig verdi]]>0,SLN(Data[[#This Row],[Opprinnelig verdi]],Data[[#This Row],[Forventet verdi ved slutten av låneperioden]],Data[[#This Row],[År med tjeneste som gjenstår ]]),0),0)","v":{"v":10000,"d":"kr 10,000.00"}},{"$f":"IFERROR(Data[[#This Row],[Årlig lineær avskrivning]]/12,0)","v":{"v":833.3333333333334,"d":"kr 833.33"}},{"$f":"IFERROR(Data[[#This Row],[Opprinnelig verdi]]-(Data[[#This Row],[Årlig lineær avskrivning]]*((TODAY()-Data[[#This Row],[Datoen for kjøp eller leie]])/365)),0)","v":{"v":15095.890410958904,"d":"kr 15,095.89"}}]
[null,789,"Type Modell","Østkysten","Ganske bra","lokal",6,{"v":300000,"d":"kr 300,000.00"},{"v":120000,"d":"kr 120,000.00"},{"$f":"TODAY()","v":"2018-06-29"},5,{"v":0.05,"d":"5.00%"},{"$f":"IFERROR(IF(AND(Data[[#This Row],[Opprinnelig verdi]]>0,Data[[#This Row],[Opprinnelig verdi]]<>Data[[#This Row],[Nedbetaling]]),-1*PMT(Data[[#This Row],[Lånerente]]/12,Data[[#This Row],[Låneperiode i år]]*12,Data[[#This Row],[Opprinnelig verdi]]-Data[[#This Row],[Nedbetaling]]),0),0)","v":{"v":3396.8220559219685,"d":"kr 3,396.82"}},{"v":240,"d":"kr 240.00"},{"$f":"IFERROR(Data[[#This Row],[Månedlig driftskostnad]]+Data[[#This Row],[Månedlig betaling]],\"\")","v":{"v":3636.8220559219685,"d":"kr 3,636.82"}},{"v":9000,"d":"kr 9,000.00"},{"$f":"IFERROR(IF(Data[[#This Row],[Opprinnelig verdi]]>0,SLN(Data[[#This Row],[Opprinnelig verdi]],Data[[#This Row],[Forventet verdi ved slutten av låneperioden]],Data[[#This Row],[År med tjeneste som gjenstår ]]),0),0)","v":{"v":48500,"d":"kr 48,500.00"}},{"$f":"IFERROR(Data[[#This Row],[Årlig lineær avskrivning]]/12,0)","v":{"v":4041.6666666666665,"d":"kr 4,041.67"}},{"$f":"IFERROR(Data[[#This Row],[Opprinnelig verdi]]-(Data[[#This Row],[Årlig lineær avskrivning]]*((TODAY()-Data[[#This Row],[Datoen for kjøp eller leie]])/365)),0)","v":{"v":300000,"d":"kr 300,000.00"}}]
[{"$nulls":12},{"$f":"IFERROR(IF(AND(Data[[#This Row],[Opprinnelig verdi]]>0,Data[[#This Row],[Opprinnelig verdi]]<>Data[[#This Row],[Nedbetaling]]),-1*PMT(Data[[#This Row],[Lånerente]]/12,Data[[#This Row],[Låneperiode i år]]*12,Data[[#This Row],[Opprinnelig verdi]]-Data[[#This Row],[Nedbetaling]]),0),0)","v":{"v":0,"d":"kr 0.00"}},null,{"$f":"IFERROR(Data[[#This Row],[Månedlig driftskostnad]]+Data[[#This Row],[Månedlig betaling]],\"\")","v":{"v":0,"d":"kr 0.00"}},null,{"$f":"IFERROR(IF(Data[[#This Row],[Opprinnelig verdi]]>0,SLN(Data[[#This Row],[Opprinnelig verdi]],Data[[#This Row],[Forventet verdi ved slutten av låneperioden]],Data[[#This Row],[År med tjeneste som gjenstår ]]),0),0)","v":{"v":0,"d":"kr 0.00"}},{"$f":"IFERROR(Data[[#This Row],[Årlig lineær avskrivning]]/12,0)","v":{"v":0,"d":"kr 0.00"}},{"$f":"IFERROR(Data[[#This Row],[Opprinnelig verdi]]-(Data[[#This Row],[Årlig lineær avskrivning]]*((TODAY()-Data[[#This Row],[Datoen for kjøp eller leie]])/365)),0)","v":{"v":0,"d":"kr 0.00"}}]
[{"$nulls":12},{"$f":"IFERROR(IF(AND(Data[[#This Row],[Opprinnelig verdi]]>0,Data[[#This Row],[Opprinnelig verdi]]<>Data[[#This Row],[Nedbetaling]]),-1*PMT(Data[[#This Row],[Lånerente]]/12,Data[[#This Row],[Låneperiode i år]]*12,Data[[#This Row],[Opprinnelig verdi]]-Data[[#This Row],[Nedbetaling]]),0),0)","v":{"v":0,"d":"kr 0.00"}},null,{"$f":"IFERROR(Data[[#This Row],[Månedlig driftskostnad]]+Data[[#This Row],[Månedlig betaling]],\"\")","v":{"v":0,"d":"kr 0.00"}},null,{"$f":"IFERROR(IF(Data[[#This Row],[Opprinnelig verdi]]>0,SLN(Data[[#This Row],[Opprinnelig verdi]],Data[[#This Row],[Forventet verdi ved slutten av låneperioden]],Data[[#This Row],[År med tjeneste som gjenstår ]]),0),0)","v":{"v":0,"d":"kr 0.00"}},{"$f":"IFERROR(Data[[#This Row],[Årlig lineær avskrivning]]/12,0)","v":{"v":0,"d":"kr 0.00"}},{"$f":"IFERROR(Data[[#This Row],[Opprinnelig verdi]]-(Data[[#This Row],[Årlig lineær avskrivning]]*((TODAY()-Data[[#This Row],[Datoen for kjøp eller leie]])/365)),0)","v":{"v":0,"d":"kr 0.00"}}]